Cogmind - Beta 10.2 *** ADVENTURER MODE // 2021.01.09 @ 21:01:38 Player: Midas Result: Destroyed by Y-45 Defender with Beam Rifle Performance ------------- Evolutions (2) 1000 Regions Visited (5) 1000 Robots Destroyed (30) 150 Value Destroyed (1108) 1108 Prototype IDs (0) 0 Alien Tech Used (0) 0 Bonus (244) 244 TOTAL SCORE: 3502 Bonus ------- Pacifist 200 High Alert Combat Kills 17 Follower Combat Kills 27 Cogmind --------- Core Integrity 0/550 Matter 223/300 Energy 99/100 System Corruption 1% Temperature Cool (9) Movement Core (150) Ox2 Location -8/Storage Parts ------- > --- POWER (1) -------- (None) > --- PROPULSION (3) --- (None) > --- UTILITY (4) ------ Medium Storage Unit Melee Analysis Suite > --- WEAPON (3) ------- (None) > --- INVENTORY (8) ---- Light Nuclear Core Improved ECM Suite Peak State ------------ > --- POWER ------------ Light Nuclear Core > --- PROPULSION ------- Aluminum Leg Aluminum Leg Aluminum Leg > --- UTILITY ---------- Medium Storage Unit Advanced Targeting Computer Core Shielding Improved Light Armor Plating > --- WEAPON ----------- Advanced Assault Cannon Advanced Assault Cannon Katana > --- INVENTORY -------- Ion Engine Light Ion Engine Aluminum Leg Improved ECM Suite Shock Rifle Beam Rifle Improved EM Pulse Cannon [Rating: 26] Favorites ----------- Power Light Ion Engine Engine Light Ion Engine Power Core Light Nuclear Core Propulsion Aluminum Leg Leg Aluminum Leg Utility Core Shielding Device Improved ECM Suite Storage Medium Storage Unit Processor Launcher Guidance Computer Protection Core Shielding Weapon Advanced Assault Cannon Energy Gun EM Pulse Gun Energy Cannon Improved EM Pulse Cannon Ballistic Gun Light Assault Rifle Ballistic Cannon Advanced Assault Cannon Launcher Rocket Launcher Slashing Weapon Katana Build | -11 -10 -9 -9 -8 -8 ------- Run | Scr Mat Mat Min Mat Sto Slots Evolved 4 | . . 2 . 2 . Power . | . . . . . . Propulsion 1 | . . . . 1 . Utility 2 | . . 1 . 1 . Weapon 1 | . . 1 . . . Parts Attached 38 | 6 2 1 2 8 19 Power 5 | 1 . . 1 . 3 Engine 4 | 1 . . 1 . 2 Core 1 | . . . . . 1 Reactor . | . . . . . . Propulsion 7 | 2 . . . 2 3 Treads . | . . . . . . Leg 7 | 2 . . . 2 3 Wheel . | . . . . . . Hover . | . . . . . . Flight . | . . . . . . Utility 10 | 1 1 1 . 2 5 Device 2 | . . . . 1 1 Storage 2 | 1 . 1 . . . Processor 4 | . . . . 1 3 Hackware . | . . . . . . Protection 2 | . 1 . . . 1 Artifact . | . . . . . . Weapon 16 | 2 1 . 1 4 8 Energy Gun 4 | 2 . . . . 2 Energy Cannon 3 | . . . . 2 1 Ballistic Gun 2 | . 1 . 1 . . Ballistic Cannon 4 | . . . . 1 3 Launcher 1 | . . . . 1 . Special Weapon . | . . . . . . Impact Weapon . | . . . . . . Slashing Weapon 2 | . . . . . 2 Piercing Weapon . | . . . . . . Special Melee Weapon . | . . . . . . Unidentified Prototypes . | . . . . . . Parts Lost 18 | . . . . 1 17 Power 2 | . . . . . 2 Propulsion 5 | . . . . 1 4 Utility 5 | . . . . . 5 Weapon 6 | . . . . . 6 Highest Loss Streak 10 | . . . . 1 10 Average Slot Usage (%) 83 | . 87 77 86 86 84 Engine 7 | . 14 11 11 9 4 Core 1 | . . . . . 3 Leg 23 | . 28 22 22 24 22 Device 2 | . . . . 5 3 Storage 9 | . 14 11 11 9 9 Processor 4 | . . . . 1 8 Protection 9 | . 2 11 11 9 10 Energy Gun 6 | . 22 11 11 7 1 Energy Cannon 1 | . . . . 2 1 Ballistic Gun 5 | . 5 11 20 12 . Ballistic Cannon 6 | . . . . 1 11 Launcher 1 | . . . . 2 2 Slashing Weapon 2 | . . . . . 5 Naked Turns . | . . . . . . Heaviest Build 33 | 10 11 15 16 32 33 Greatest Support 30 | 20 20 20 20 30 30 Greatest Overweight (x) 6 | . . . . 1 6 Average Overweight (x) . | . . . . . . Largest Inventory Capacity 10 | 6 6 10 8 8 8 Average Capacity 7 | 5 6 6 8 8 8 Most Carried 8 | 5 6 7 8 8 8 Average Carried 6 | 3 5 6 7 7 6 Final Capacity 8 | 6 6 8 8 8 8 Final Carried 8 | 5 6 7 8 8 2 Class Distribution -------------------- 67% | Mutant 16% | Scavenger-Mutant 8% | Tank 7% | Scavenger-Tank Dominant Class ---------------- Mutant | -10/Materials Mutant | -9/Materials Tank | -9/Mines Scavenger-Tank | -8/Materials Mutant | -8/Storage Resources | -11 -10 -9 -9 -8 -8 ----------- Run | Scr Mat Mat Min Mat Sto Matter Collected 959 | 181 . 118 25 99 536 Remotely 4 | . . . . . 4 Salvage Created 879 | . . 50 54 174 601 Parts 44 | . . 4 10 6 24 Haulers Intercepted . | . . . . . . Recyclers Shooed . | . . . . . . Parts Field Recycled . | . . . . . . Retrieved Matter . | . . . . . . Parts Self-Destructed . | . . . . . . Prevented . | . . . . . . Kills | -11 -10 -9 -9 -8 -8 ------- Run | Scr Mat Mat Min Mat Sto Combat Hostiles Destroyed 26 | . . 1 3 3 19 Melee 1 | . . . . . 1 Guns 5 | . . . 3 2 . Cannons 18 | . . . . 1 17 AOE 2 | . . 1 . . 1 Classes Destroyed 8 | . . 2 1 1 4 Worker 2 | . . . . . 2 Watcher 2 | . . 1 . . 1 Swarmer 3 | . . . 3 . . Grunt 15 | . . 1 . 2 12 Brawler 2 | . . . . . 2 Duelist 1 | . . . . . 1 Protector 1 | . . . . . 1 Sentry 4 | . . . . 1 3 Best Kill Streak 5 | . . 1 3 2 5 Combat Bots Only 3 | . . 1 3 2 3 Max Kills in Single Turn 2 | . . 1 1 1 2 Gunslinging . | . . . . . . Exploded 1 | . . 1 . . 1 Melee 1 | . . . . . 1 Uniques/NPCs Destroyed . | . . . . . . Combat | -11 -10 -9 -9 -8 -8 -------- Run | Scr Mat Mat Min Mat Sto Damage Taken 2403 | . . 135 28 217 2023 Core 578 | . . 20 4 19 535 Absorbed by Shields . | . . . . . . Core Remaining (%) 98 | 100 100 . 94 . . Volleys Fired 100 | . 3 10 3 11 73 Largest 3 | . 2 2 2 3 3 Hottest 150 | . 80 60 60 117 150 Shots Fired 163 | . 6 20 6 32 99 Gun 73 | . 6 20 6 30 11 Cannon 88 | . . . . 2 86 Launcher 2 | . . . . . 2 Special . | . . . . . . Kinetic 116 | . 1 10 3 21 81 Thermal 12 | . 2 . . . 10 Explosive 2 | . . . . . 2 Electromagnetic 33 | . 3 10 3 11 6 Robot Hit Streak 18 | . 3 18 2 15 14 Robot Miss Streak 3 | . 1 1 1 2 3 Penetration Max . | . . . . . . Secondary Targets 1 | . . . 1 . . Max Gunslinging Chain 1 | . . . 1 . . Shots Hit Robots 136 | . 5 17 3 27 84 Core Hits 56 | . 1 4 3 8 40 Critical Hits 1 | . . . . . 1 Critical Kills 1 | . . . . . 1 Critical Parts Destroyed . | . . . . . . Melee Attacks 4 | . . . . . 4 Impact . | . . . . . . Slashing 4 | . . . . . 4 Piercing . | . . . . . . Sneak Attacks 1 | . . . . . 1 Combat Hostiles . | . . . . . . Follow-up Attacks . | . . . . . . Damage Inflicted 2999 | . 73 211 32 288 2395 Guns 645 | . 73 165 32 263 112 Cannons 1897 | . . . . 25 1872 Explosions 269 | . . 46 . . 223 Melee 185 | . . . . . 185 Ramming 3 | . . . . . 3 Kinetic 1982 | . 9 55 10 122 1786 Thermal 163 | . 20 46 . . 97 Explosive 223 | . . . . . 223 Electromagnetic 443 | . 44 110 22 166 101 Impact . | . . . . . . Slashing 185 | . . . . . 185 Piercing . | . . . . . . Highest Corruption 1 | . . . . . 1 Average Corruption 1 | . . . . . 1 Corruption Purged . | . . . . . . Effects 1 | . . . . . 1 Message Errors 1 | . . . . . 1 Overload Shots . | . . . . . . Overflow Damage 22 | . . . . . 22 Projectiles 16 | . . . . . 16 Explosions 4 | . . . . . 4 Melee 2 | . . . . . 2 Knockbacks 27 | . . . . . 27 Impact . | . . . . . . Kinetic 21 | . . . . . 21 Secondary 6 | . . . . . 6 Self-Inflicted Damage 21 | . . 20 . . 1 Shots 1 | . . 1 . . . Rammed 2 | . . . . . 2 Targets Rammed 2 | . . . . . 2 Kicked . | . . . . . . Crushed . | . . . . . . Highest Temperature 215 | . 20 46 14 162 215 Average Temperature 67 | . 12 14 10 82 74 Received Heat Transfer 1263 | . . 48 . 153 1062 Siege Activations . | . . . . . . Robots Corrupted . | . . . . . . Combat Hostiles . | . . . . . . Parts Fried 1 | . . . . 1 . Impact Corruptions . | . . . . . . Robots Melted . | . . . . . . Combat Hostiles . | . . . . . . Parts Melted . | . . . . . . Heat Transferred 343 | . 50 50 . . 243 Parts Sabotaged . | . . . . . . Parts Stolen . | . . . . . . Parts Stripped . | . . . . . . Power Chain Reactions 1 | . . 1 . . . Missiles Intercepted . | . . . . . . Alert | -11 -10 -9 -9 -8 -8 ------- Run | Scr Mat Mat Min Mat Sto Peak Influence 433 | . 30 97 81 87 433 Initial 31 | . . 10 31 26 31 Average 140 | . 16 35 78 53 251 Maximum Alert Level 2 | . . . . . 2 Low Security (%) 66 | 100 100 100 100 100 30 Level 1 28 | . . . . . 58 Level 2 5 | . . . . . 10 Level 3 . | . . . . . . Level 4 . | . . . . . . Level 5 . | . . . . . . High Security . | . . . . . . Max Security . | . . . . . . Squads Dispatched 5 | . . 1 . . 4 Investigation 1 | . . . . . 1 Extermination . | . . . . . . Reinforcement 2 | . . 1 . . 1 Assault 2 | . . . . . 2 Garrison . | . . . . . . Intercept . | . . . . . . Construction Impeded . | . . . . . . Haulers Reinforced . | . . . . . . Stealth | -11 -10 -9 -9 -8 -8 --------- Run | Scr Mat Mat Min Mat Sto Distress Signals 5 | . . . . 2 3 Communications Jammed . | . . . . . . Distress Signals . | . . . . . . Times Spotted 56 | . 4 7 2 7 36 Peak Tracking Total 8 | . 2 3 2 5 8 Tactical Retreats 5 | . . . . . 5 Traps | -11 -10 -9 -9 -8 -8 ------- Run | Scr Mat Mat Min Mat Sto Traps Triggered 1 | . . . . . 1 Indirectly . | . . . . . . Trap Hack Attempts . | . . . . . . Triggered . | . . . . . . Disarmed . | . . . . . . Reprogrammed . | . . . . . . Reused . | . . . . . . Traps Extracted . | . . . . . . Installed . | . . . . . . Triggered . | . . . . . . Machines | -11 -10 -9 -9 -8 -8 ---------- Run | Scr Mat Mat Min Mat Sto Machines Disabled 1 | . . . . . 1 Max in Single Turn 1 | . . . . . 1 Machines Sabotaged . | . . . . . . Garrisons Compromised . | . . . . . . Overloaded Fab Kills . | . . . . . . Fab Network Shutdowns . | . . . . . . Hacking | -11 -10 -9 -9 -8 -8 --------- Run | Scr Mat Mat Min Mat Sto Machines Accessed . | . . . . . . Terminals . | . . . . . . Fabricators . | . . . . . . Repair Stations . | . . . . . . Recycling Units . | . . . . . . Scanalyzers . | . . . . . . Garrison Access . | . . . . . . Total Hacks . | . . . . . . Successful . | . . . . . . Failed . | . . . . . . Catastrophic . | . . . . . . Database Lockouts . | . . . . . . Manual . | . . . . . . Terminals . | . . . . . . Fabricators . | . . . . . . Repair Stations . | . . . . . . Recycling Units . | . . . . . . Scanalyzers . | . . . . . . Garrison Access . | . . . . . . Terminal Hacks . | . . . . . . Fabricator Hacks . | . . . . . . Repair Station Hacks . | . . . . . . Recycling Unit Hacks . | . . . . . . Scanalyzer . | . . . . . . Garrison Access Hacks . | . . . . . . Unauthorized Hacks . | . . . . . . Terminals . | . . . . . . Fabricators . | . . . . . . Repair Stations . | . . . . . . Recycling Units . | . . . . . . Scanalyzers . | . . . . . . Garrison Access . | . . . . . . Data Cores Recovered . | . . . . . . Used . | . . . . . . Hacking Detections . | . . . . . . Full Trace Events . | . . . . . . Feedback Events . | . . . . . . Feedback Blocked . | . . . . . . Robot Schematics Acquired . | . . . . . . Robots Built . | . . . . . . Matter . | . . . . . . Time . | . . . . . . Total Robot Build Rating . | . . . . . . Part Schematics Acquired . | . . . . . . Parts Built . | . . . . . . Matter . | . . . . . . Time . | . . . . . . Total Part Build Rating . | . . . . . . Parts Repaired . | . . . . . . Time . | . . . . . . Parts Recycled . | . . . . . . Recycled Matter . | . . . . . . Retrieved Matter . | . . . . . . Retrieved Components . | . . . . . . Parts Scanalyzed . | . . . . . . Part Schematics Acquired . | . . . . . . Parts Damaged . | . . . . . . Bothacking | -11 -10 -9 -9 -8 -8 ------------ Run | Scr Mat Mat Min Mat Sto Used RIF Installer . | . . . . . . Robots Hacked . | . . . . . . Non-combat . | . . . . . . Combat . | . . . . . . Robot Hacks Applied . | . . . . . . Relay Couplers Released . | . . . . . . Robots Rewired 1 | . . 1 . . . Allies Hacked . | . . . . . . Hacks Repelled . | . . . . . . Allies | -11 -10 -9 -9 -8 -8 -------- Run | Scr Mat Mat Min Mat Sto Total Allies 3 | . . 1 . . 2 Largest Group 2 | . . 1 . . 2 Highest-Rated Group 62 | . . 8 . . 62 Highest-Rated Ally 31 | . . 8 . . 31 Total Orders . | . . . . . . Ally Attacks 17 | . . 4 1 . 12 Total Damage 288 | . . 34 . . 254 Kills 1 | . . . . . 1 Allies Corrupted . | . . . . . . Allies Melted . | . . . . . . Intel | -11 -10 -9 -9 -8 -8 ------- Run | Scr Mat Mat Min Mat Sto Robot Analysis Total . | . . . . . . Derelict Logs Recovered . | . . . . . . Drone Launches . | . . . . . . Drone Recoveries . | . . . . . . Exploration | -11 -10 -9 -9 -8 -8 ------------- Run | Scr Mat Mat Min Mat Sto Turns Passed 1852 | 77 204 293 69 318 891 Spaces Moved 1178 | 65 160 215 48 213 477 Core 70 | 23 . . . . 47 Treads . | . . . . . . Legs 1108 | 42 160 215 48 213 430 Wheels . | . . . . . . Hover . | . . . . . . Flight . | . . . . . . Fastest Speed 50 | 50 120 120 120 120 120 Average Speed 126 | 95 120 120 120 125 136 Slowest Speed 350 | 120 120 120 120 150 350 Overloaded Moves . | . . . . . . Propulsion Burnouts . | . . . . . . Robots Hopped . | . . . . . . Cave-ins Triggered . | . . . . . . Exploration Rate (%) 23 | 5 29 19 9 21 59 Regions Visited 5 Branch Regions 2 Pre-discovered Areas . | . . . . . . Known Exits Taken . | . . . . . . Unknown Exits Taken 5 | 1 1 1 1 1 . Scrap Searched . | . . . . . . Spaces Dug . | . . . . . . Terrain Destroyed 35 | . . 4 . 1 30 Melee . | . . . . . . Projectile 14 | . . . . 1 13 AOE 21 | . . 4 . . 17 Terrain Rammed . | . . . . . . Walls Destroyed . | . . . . . . Machines Disabled . | . . . . . . Actions | -11 -10 -9 -9 -8 -8 --------- Run | Scr Mat Mat Min Mat Sto Total 1381 | 77 165 232 54 243 610 Wait 23 | . . . . . 23 Move 1173 | 64 159 214 47 212 477 Hop . | . . . . . . Pick Up 15 | 6 1 . 1 4 3 Fast Attach 21 | 6 1 1 1 7 5 Attach 8 | . . . . . 8 Detach 3 | . . 1 . . 2 Swap 9 | . 1 . 1 1 6 Drop 17 | 1 . . 1 8 7 Fire 100 | . 3 10 3 11 73 Melee 4 | . . . . . 4 Ram 2 | . . . . . 2 Kick . | . . . . . . Crush . | . . . . . . Escape Stasis . | . . . . . . Rewire 6 | . . 6 . . . Trap . | . . . . . . Miscellaneous . | . . . . . . Route ------- -11/Scrapyard -10/Materials -9/Materials -9/Mines -8/Materials -8/Storage History --------- Turn | Location | Event 15 | -11/Scrapyard | Discovered new exit (range 15) 78 | -11/Scrapyard | Entered Materials 277 | -10/Materials | Discovered new exit (range 3) 282 | -10/Materials | Entered another Materials area 282 | -9/Materials | Evolved 2 slots: Utility x1, Weapon x1 302 | -9/Materials | Build established: Mutant 556 | -9/Materials | Discovered new exit (range 16) 575 | -9/Materials | Entered Mines 575 | -9/Mines | Accompanied by 1 ally 622 | -9/Mines | Discovered new exit (range 5) 644 | -9/Mines | Entered Materials 644 | -8/Materials | Evolved 2 slots: Propulsion x1, Utility x1 946 | -8/Materials | Discovered new exit (range 10) 962 | -8/Materials | Entered Storage 1491 | -8/Storage | Met a pair of Derelict thieves 1694 | -8/Storage | Lost 5 parts (2n2u1w) 1774 | -8/Storage | Core integrity fell below 50% 1821 | -8/Storage | Core integrity fell below 20% 1837 | -8/Storage | Lost 10 parts (2p2n1u5w) 1853 | -8/Storage | Destroyed by Y-45 Defender with Beam Rifle Last Messages --------------- 01741_ Imp. Light Armor Plating destroyed. 01742_ Terminal disabled. 01742_ Aluminum Leg destroyed. 01743_ K-01 Serf collects debris. 01744_ Aluminum Leg destroyed. 01747_ K-01 Serf collects debris. 01750_ Lgt. Ion Engine destroyed. 01752_ G-47 Trooper destroyed. 01752_ K-01 Serf collects debris. 01756_ R-06 Scavenger collects Aluminum Leg. 01760_ R-06 Scavenger collects Imp. Heat Sink. 01762_ Beam Rifle destroyed. 01763_ Adv. Assault Cannon destroyed. 01772_ Imp. EM Pulse Cannon destroyed. 01789_ Shock Rifle destroyed. 01789_ Slammed into Y-45 Defender. 01789_ Destabilizing: System interference. 01789_ Melee Analysis Suite temporarily disabled. 01791_ Slammed into Y-45 Defender. 01806_ Ion Engine destroyed. Map ----- +----------------------------------------------------+ | ????????????????????????????????? | | ????????????????????????????????? | | ????????????????????????????????? | | #######?????????????????????????? | | ?????????????????????????? | | #?????????????????????????? | | #?????????????????????????? | | " #?????????????????????????? | | " #????????????????"""??????? | | " #???????????????# #??????? | | " #?????##"#??????T #??????? | | ? #?????#T #??????# #??????? | | ? ?????####+#??????# #??????? | | ##+######## #??????# #??????? | | ^ " #??????# #??????? | | T% #?????## ##?????? | | ########### =####### #?????? | | #????????## ### #?????? | | #?????????# #?# #?????? | | "#????????# #?# ### #?????? | | T#????????# #?# ####+########? | | "#????????# ### # #? | | ##????????# # """ """ #? | | #?????????# # """ """Y #? | | #?????????# ###### """ """Y #? | | #?????????# #????# Y @ #? | | ##?????????# #????#############? | | ???????????# #?????????????????? | | ???????????# #?????????????????? | | ??????????? ?????????????????? | | ??????????? ?????????????????? | | ?????????? ?????????????????? | | ?????????? ?????????????????? | | ??????????## ##?????????????????? | | ???????????# ???????????????????? | | ???????????? ???????????????????? | | ???????????? ???????????????????? | | ???????????? ???????????????????? | | ????????????????????????????????? | | ????????????????????????????????? | | ????????????????????????????????? | | ????????????????????????????????? | | ????????????????????????????????? | | ????????????????????????????????? | | ????????????????????????????????? | | ????????????????????????????????? | | ????????????????????????????????? | | ????????????????????????????????? | | ????????????????????????????????? | | ????????????????????????????????? | +----------------------------------------------------+ Best States ------------- Heat Dissipation 31 Energy Generation 14 Energy Capacity 250 Matter Stores 300 Matter Capacity 300 Sight Range 16 Terrain Scan Density 10 ECM Strength 2 Armor Coverage 150 Resistance: KI 20 Resistance: TH 20 Resistance: EX 20 Resistance: EM 20 Resistance: I 20 Resistance: S 20 Resistance: P 20 Core Shielding 20 Evasion (%) 50 Targeting Accuracy 8 Melee Accuracy 5 Launcher Accuracy 20 Offensive Hacking 10 Item Schematics ----------------- None Robot Schematics ------------------ None Fabricated ------------ Nothing Alien Tech Used ----------------- None Achievements -------------- A New Friend Challenges ------------ None Game ------ Seed OverloadLightGreatsword Manual? 0 Play Time 00:36:45 Cumulative 15.9 hours Start 2021.01.09 @ 20:21:56 End 2021.01.09 @ 21:01:38 Sessions 1 Manual Loads 0 Difficulty Adventurer Special Mode None Game No. 24 Rogue 13 Adventurer 11 Explorer 0 Win Type - Total 0 Types 0/0/0/0/0/0/0/0/0 Lore% 9 Gallery% 21 Achievement% 15 Wizard Run 0 Options --------- ASCII 0 Keyboard 1 Movement Arrows Keybinds 0 Fullscreen 1 Font 18/SmallcapsGlow Map View 76x50 Tactical HUD 1 Map Filters NONE Filters NONE Steam 1 RUN: a223bcea-6bcc-4dd9-894a-c58ca6c8351c